[Event "Early-Titled-Tuesday-Blitz-December-26-2023"]
[Site "Chess.com"]
[Date "2023.12.26"]
[Round "9"]
[White "Bauman_Guy"]
[Black "Pendos666"]
[Result "0-1"]
[WhiteElo "2911"]
[BlackElo "2879"]
[TimeControl "180+1"]
[EndTime "9:46:33 PST"]
[Termination "Pendos666 won on time"]

1. e4 {[%clk 0:03:00.9]} 1... c6 {[%clk 0:02:57.9]} 2. d4 {[%clk 0:03:00.8]}
2... d5 {[%clk 0:02:58]} 3. e5 {[%clk 0:03:01.3]} 3... Bf5 {[%clk 0:02:57.7]} 4.
h4 {[%clk 0:03:01.7]} 4... h5 {[%clk 0:02:57.4]} 5. Bd3 {[%clk 0:03:01.7]} 5...
Bxd3 {[%clk 0:02:56.9]} 6. Qxd3 {[%clk 0:03:02.6]} 6... Qa5+ {[%clk 0:02:56.9]}
7. Nd2 {[%clk 0:03:02.7]} 7... e6 {[%clk 0:02:56.6]} 8. Nf3 {[%clk 0:03:03.1]}
8... c5 {[%clk 0:02:51.9]} 9. O-O {[%clk 0:02:48.1]} 9... c4 {[%clk 0:02:46.6]}
10. Qe2 {[%clk 0:02:41.4]} 10... Nh6 {[%clk 0:02:42.3]} 11. Rd1 {[%clk
0:02:36.6]} 11... Be7 {[%clk 0:02:36]} 12. b3 {[%clk 0:02:34.5]} 12... c3 {[%clk
0:02:31]} 13. Nf1 {[%clk 0:02:34]} 13... Nd7 {[%clk 0:02:11.2]} 14. a3 {[%clk
0:02:26.5]} 14... Nf5 {[%clk 0:02:04.5]} 15. g3 {[%clk 0:02:26]} 15... Qa6
{[%clk 0:02:02.9]} 16. Rd3 {[%clk 0:02:22.4]} 16... Rc8 {[%clk 0:02:01.2]} 17.
Qe1 {[%clk 0:02:15.3]} 17... Qc6 {[%clk 0:01:56.5]} 18. Ne3 {[%clk 0:02:14.5]}
18... Nxe3 {[%clk 0:01:52.2]} 19. Bxe3 {[%clk 0:02:14.4]} 19... f6 {[%clk
0:01:46.7]} 20. Bf4 {[%clk 0:02:04.1]} 20... Nf8 {[%clk 0:01:40.5]} 21. Re3
{[%clk 0:01:24.6]} 21... Kf7 {[%clk 0:01:39.1]} 22. Qf1 {[%clk 0:01:16.1]} 22...
Ng6 {[%clk 0:01:34.8]} 23. Rae1 {[%clk 0:01:15.9]} 23... Nxf4 {[%clk 0:01:16.5]}
24. gxf4 {[%clk 0:01:16.8]} 24... Rce8 {[%clk 0:01:15]} 25. b4 {[%clk
0:01:00.8]} 25... Rh6 {[%clk 0:01:13.6]} 26. exf6 {[%clk 0:00:52.2]} 26... gxf6
{[%clk 0:01:00.2]} 27. f5 {[%clk 0:00:50.2]} 27... exf5 {[%clk 0:00:52.7]} 28.
Qd3 {[%clk 0:00:34.8]} 28... Rg6+ {[%clk 0:00:51.7]} 29. Kh1 {[%clk 0:00:34.9]}
29... Qd7 {[%clk 0:00:49.4]} 30. Ng1 {[%clk 0:00:13.4]} 30... Rg4 {[%clk
0:00:45.3]} 31. Nf3 {[%clk 0:00:12.6]} 31... Re4 {[%clk 0:00:43.8]} 32. Nh2
{[%clk 0:00:07.2]} 32... Bd6 {[%clk 0:00:38.1]} 33. f3 {[%clk 0:00:07.6]} 33...
Rxe3 {[%clk 0:00:35]} 34. Rxe3 {[%clk 0:00:08.5]} 34... Rxe3 {[%clk 0:00:31.2]}
35. Qxe3 {[%clk 0:00:09.4]} 35... Qe6 {[%clk 0:00:30.7]} 36. Qf2 {[%clk
0:00:06.7]} 36... Bf4 {[%clk 0:00:29.3]} 37. Nf1 {[%clk 0:00:07.1]} 37... b5
{[%clk 0:00:28.4]} 38. Kg2 {[%clk 0:00:06.6]} 38... Kf8 {[%clk 0:00:27.3]} 39.
Kh3 {[%clk 0:00:06.3]} 39... a6 {[%clk 0:00:26.2]} 40. Ng3 {[%clk 0:00:06.2]}
40... Qe3 {[%clk 0:00:22.3]} 41. Qxe3 {[%clk 0:00:02.8]} 41... Bxe3 {[%clk
0:00:23]} 42. Nxf5 {[%clk 0:00:03.7]} 42... Bc1 {[%clk 0:00:23.2]} 43. Ng3
{[%clk 0:00:02.4]} 43... Bxa3 {[%clk 0:00:22.5]} 44. Nxh5 {[%clk 0:00:03.3]}
44... Kf7 {[%clk 0:00:22.7]} 45. Nf4 {[%clk 0:00:03.8]} 45... Bxb4 {[%clk
0:00:22.2]} 46. Nxd5 {[%clk 0:00:04.7]} 46... Ba5 {[%clk 0:00:22.5]} 47. h5
{[%clk 0:00:04.8]} 47... b4 {[%clk 0:00:22.9]} 48. Ne3 {[%clk 0:00:05.2]} 48...
Bb6 {[%clk 0:00:21]} 49. Nc4 {[%clk 0:00:02.1]} 49... Bxd4 {[%clk 0:00:20.6]}
50. Kg4 {[%clk 0:00:02.3]} 50... b3 {[%clk 0:00:20.6]} 51. Na3 {[%clk
0:00:02.8]} 51... bxc2 {[%clk 0:00:19.7]} 52. Nxc2 {[%clk 0:00:03.5]} 52... Bc5
{[%clk 0:00:20.1]} 53. Kf5 {[%clk 0:00:03.9]} 53... a5 {[%clk 0:00:20.7]} 54.
Ke4 {[%clk 0:00:04.8]} 54... a4 {[%clk 0:00:21.2]} 55. Kd3 {[%clk 0:00:05.4]}
55... Kg7 {[%clk 0:00:20.7]} 56. Kxc3 {[%clk 0:00:05]} 56... Kh6 {[%clk
0:00:21.1]} 57. Kc4 {[%clk 0:00:05.2]} 57... Bf8 {[%clk 0:00:21.2]} 58. Kb5
{[%clk 0:00:02.5]} 58... a3 {[%clk 0:00:21.5]} 59. Kc4 {[%clk 0:00:03.4]} 59...
Kxh5 {[%clk 0:00:21.3]} 60. Kd3 {[%clk 0:00:02.6]} 60... Kg5 {[%clk 0:00:21.6]}
61. Ke4 {[%clk 0:00:02.9]} 61... f5+ {[%clk 0:00:21.9]} 62. Kd3 {[%clk
0:00:02.7]} 62... a2 {[%clk 0:00:22.2]} 63. Kc4 {[%clk 0:00:01.8]} 63... Bg7
{[%clk 0:00:22.3]} 0-1

[Event "Early-Titled-Tuesday-Blitz-December-26-2023"]
[Site "Chess.com"]
[Date "2023.12.26"]
[Round "9"]
[White "TitarovVasiliYouTube"]
[Black "Fischerev7"]
[Result "0-1"]
[WhiteElo "2538"]
[BlackElo "2418"]
[TimeControl "180+1"]
[EndTime "9:46:41 PST"]
[Termination "Fischerev7 won on time"]

1. e4 {[%clk 0:03:00.9]} 1... c5 {[%clk 0:02:45.3]} 2. Nf3 {[%clk 0:02:40.7]}
2... d6 {[%clk 0:02:45.5]} 3. d4 {[%clk 0:02:22.9]} 3... cxd4 {[%clk 0:02:46.4]}
4. Nxd4 {[%clk 0:02:23.5]} 4... Nf6 {[%clk 0:02:47]} 5. Nc3 {[%clk 0:02:23.4]}
5... a6 {[%clk 0:02:47.5]} 6. Be2 {[%clk 0:02:19.5]} 6... e6 {[%clk 0:02:42.7]}
7. O-O {[%clk 0:02:18.9]} 7... Be7 {[%clk 0:02:43.3]} 8. f4 {[%clk 0:02:17.1]}
8... O-O {[%clk 0:02:43.2]} 9. Be3 {[%clk 0:02:11.9]} 9... Qc7 {[%clk
0:02:43.1]} 10. Qe1 {[%clk 0:02:10.7]} 10... Nc6 {[%clk 0:02:42.5]} 11. Qg3
{[%clk 0:02:07.6]} 11... Bd7 {[%clk 0:02:42.2]} 12. Nb3 {[%clk 0:02:05]} 12...
b5 {[%clk 0:02:40.7]} 13. a3 {[%clk 0:02:04.2]} 13... b4 {[%clk 0:02:28.6]} 14.
axb4 {[%clk 0:02:02.9]} 14... Nxb4 {[%clk 0:02:29.5]} 15. Rac1 {[%clk
0:01:58.3]} 15... a5 {[%clk 0:02:19]} 16. e5 {[%clk 0:01:42.4]} 16... Nfd5
{[%clk 0:02:14]} 17. Bd4 {[%clk 0:01:38.1]} 17... Nxc3 {[%clk 0:02:09.4]} 18.
bxc3 {[%clk 0:01:33.1]} 18... Nc6 {[%clk 0:01:42]} 19. exd6 {[%clk 0:01:10.7]}
19... Nxd4 {[%clk 0:01:42]} 20. Nxd4 {[%clk 0:01:11.5]} 20... Bxd6 {[%clk
0:01:39.6]} 21. Bd3 {[%clk 0:01:09.9]} 21... g6 {[%clk 0:01:36.4]} 22. Qh4
{[%clk 0:00:19.3]} 22... Qxc3 {[%clk 0:01:31.3]} 23. Nf3 {[%clk 0:00:19.5]}
23... a4 {[%clk 0:01:23.2]} 24. Ng5 {[%clk 0:00:19.6]} 24... Qg7 {[%clk
0:01:23.8]} 25. Ne4 {[%clk 0:00:20.1]} 25... Bc7 {[%clk 0:01:12]} 26. Nf6+
{[%clk 0:00:19.1]} 26... Kh8 {[%clk 0:01:08.4]} 27. Nxd7 {[%clk 0:00:20]} 27...
Rfd8 {[%clk 0:01:02.5]} 28. Ne5 {[%clk 0:00:19.6]} 28... a3 {[%clk 0:00:58.7]}
29. Ra1 {[%clk 0:00:19.3]} 29... Bb6+ {[%clk 0:00:51.9]} 30. Kh1 {[%clk
0:00:19]} 30... a2 {[%clk 0:00:49.2]} 31. Bc4 {[%clk 0:00:12.9]} 31... Rd4
{[%clk 0:00:34.5]} 32. Rxa2 {[%clk 0:00:10.5]} 32... Rxa2 {[%clk 0:00:33.5]} 33.
Bxa2 {[%clk 0:00:11.4]} 33... Qxe5 {[%clk 0:00:33.7]} 34. fxe5 {[%clk 0:00:07]}
34... Rxh4 {[%clk 0:00:32.9]} 35. Rxf7 {[%clk 0:00:07.4]} 35... Ra4 {[%clk
0:00:23.2]} 36. Bb1 {[%clk 0:00:00.7]} 36... Ra1 {[%clk 0:00:20.6]} 37. Rf1
{[%clk 0:00:01.4]} 37... Bd4 {[%clk 0:00:18.4]} 38. g3 {[%clk 0:00:01.6]} 38...
Bxe5 {[%clk 0:00:17.8]} 39. Kg2 {[%clk 0:00:02.5]} 39... Bc3 {[%clk 0:00:17.5]}
40. Rd1 {[%clk 0:00:02.2]} 40... e5 {[%clk 0:00:17.3]} 41. Kf3 {[%clk 0:00:03]}
41... Kg7 {[%clk 0:00:17.5]} 42. Ke4 {[%clk 0:00:03]} 42... h5 {[%clk
0:00:16.3]} 43. Kd3 {[%clk 0:00:03.6]} 43... Bd4 {[%clk 0:00:15.4]} 44. c3
{[%clk 0:00:04.2]} 44... Bb6 {[%clk 0:00:12.2]} 45. Kc2 {[%clk 0:00:04.6]} 45...
e4 {[%clk 0:00:08.2]} 46. Rd7+ {[%clk 0:00:04.6]} 46... Kh6 {[%clk 0:00:08]} 47.
Rd6 {[%clk 0:00:04.8]} 47... Bg1 {[%clk 0:00:07.2]} 48. h4 {[%clk 0:00:04.1]}
48... e3 {[%clk 0:00:07.3]} 49. Kb2 {[%clk 0:00:02.9]} 49... Rxb1+ {[%clk
0:00:06]} 50. Kxb1 {[%clk 0:00:02.8]} 50... Bf2 {[%clk 0:00:05.6]} 51. Re6
{[%clk 0:00:03.7]} 51... Bxg3 {[%clk 0:00:05.4]} 52. Rxe3 {[%clk 0:00:03.9]}
52... Bxh4 {[%clk 0:00:06.1]} 53. Kc2 {[%clk 0:00:02.9]} 53... Bf2 {[%clk
0:00:05.8]} 54. Rf3 {[%clk 0:00:03]} 54... Bg1 {[%clk 0:00:05.9]} 55. Rg3 {[%clk
0:00:02.7]} 55... Bf2 {[%clk 0:00:06]} 56. Rg2 {[%clk 0:00:02.1]} 56... Bc5
{[%clk 0:00:06.5]} 57. Kd3 {[%clk 0:00:01.5]} 57... h4 {[%clk 0:00:06.9]} 58.
Ke4 {[%clk 0:00:01.2]} 58... Kh5 {[%clk 0:00:06.7]} 59. Kf3 {[%clk 0:00:00.9]}
59... g5 {[%clk 0:00:06.9]} 0-1

[Event "Early-Titled-Tuesday-Blitz-December-26-2023"]
[Site "Chess.com"]
[Date "2023.12.26"]
[Round "9"]
[White "SergioMoralesG"]
[Black "a-z30"]
[Result "1/2-1/2"]
[WhiteElo "2397"]
[BlackElo "2490"]
[TimeControl "180+1"]
[EndTime "9:46:41 PST"]
[Termination "Game drawn by repetition"]

1. d4 {[%clk 0:03:00.9]} 1... d6 {[%clk 0:03:00.9]} 2. Nf3 {[%clk 0:02:57.1]}
2... Nf6 {[%clk 0:03:00.4]} 3. c4 {[%clk 0:02:57.6]} 3... g6 {[%clk 0:03:00.3]}
4. Nc3 {[%clk 0:02:58]} 4... Bg7 {[%clk 0:03:00.5]} 5. e4 {[%clk 0:02:58.6]}
5... O-O {[%clk 0:03:00.5]} 6. Be2 {[%clk 0:02:59.2]} 6... c5 {[%clk 0:02:59.7]}
7. O-O {[%clk 0:02:58.2]} 7... Bg4 {[%clk 0:02:58.8]} 8. Be3 {[%clk 0:02:53.4]}
8... Bxf3 {[%clk 0:02:55.8]} 9. Bxf3 {[%clk 0:02:53.2]} 9... cxd4 {[%clk
0:02:56]} 10. Bxd4 {[%clk 0:02:52.6]} 10... Nc6 {[%clk 0:02:56.6]} 11. Be3
{[%clk 0:02:53.2]} 11... Rc8 {[%clk 0:02:36.5]} 12. Be2 {[%clk 0:02:47.6]} 12...
a6 {[%clk 0:02:26.9]} 13. Rc1 {[%clk 0:02:43.7]} 13... Qa5 {[%clk 0:02:24.9]}
14. f3 {[%clk 0:02:36.3]} 14... b5 {[%clk 0:01:58.3]} 15. cxb5 {[%clk
0:02:20.1]} 15... axb5 {[%clk 0:01:59.2]} 16. Bxb5 {[%clk 0:02:20.1]} 16... Ne5
{[%clk 0:01:39.2]} 17. Qe2 {[%clk 0:02:13]} 17... Qb4 {[%clk 0:01:28.4]} 18. a3
{[%clk 0:02:04.3]} 18... Qb3 {[%clk 0:01:26.9]} 19. Ba4 {[%clk 0:01:54.3]} 19...
Qb7 {[%clk 0:01:23.3]} 20. Nb5 {[%clk 0:01:27.9]} 20... Nfd7 {[%clk 0:01:10]}
21. Rxc8 {[%clk 0:01:18.7]} 21... Rxc8 {[%clk 0:01:10.9]} 22. Rc1 {[%clk
0:01:18.6]} 22... Nc5 {[%clk 0:01:06]} 23. Bxc5 {[%clk 0:01:04.1]} 23... dxc5
{[%clk 0:00:58.6]} 24. Bb3 {[%clk 0:00:55.5]} 24... e6 {[%clk 0:00:44.7]} 25. a4
{[%clk 0:00:54]} 25... Rd8 {[%clk 0:00:41.1]} 26. Rd1 {[%clk 0:00:47.4]} 26...
Rb8 {[%clk 0:00:37.2]} 27. Kh1 {[%clk 0:00:42.8]} 27... Nc6 {[%clk 0:00:36.4]}
28. Bc4 {[%clk 0:00:38.1]} 28... Nd4 {[%clk 0:00:35.6]} 29. Qd3 {[%clk
0:00:30.1]} 29... h5 {[%clk 0:00:31.3]} 30. b3 {[%clk 0:00:28.3]} 30... Rd8
{[%clk 0:00:29.3]} 31. Qf1 {[%clk 0:00:20.3]} 31... Qb8 {[%clk 0:00:28.1]} 32.
Nxd4 {[%clk 0:00:19.9]} 32... Bxd4 {[%clk 0:00:26.8]} 33. g3 {[%clk 0:00:19.5]}
33... Qb4 {[%clk 0:00:19.2]} 34. Kg2 {[%clk 0:00:18.8]} 34... Qc3 {[%clk
0:00:18.8]} 35. Qd3 {[%clk 0:00:17.8]} 35... Qb2+ {[%clk 0:00:17]} 36. Qd2
{[%clk 0:00:16.5]} 36... Qa3 {[%clk 0:00:16.1]} 37. Qd3 {[%clk 0:00:15.8]} 37...
Qb4 {[%clk 0:00:15.2]} 38. h4 {[%clk 0:00:14.4]} 38... Qb8 {[%clk 0:00:14.2]}
39. Qe2 {[%clk 0:00:12.1]} 39... Kg7 {[%clk 0:00:14.4]} 40. Kh3 {[%clk
0:00:11.6]} 40... Qc7 {[%clk 0:00:13.4]} 41. f4 {[%clk 0:00:11.4]} 41... Rb8
{[%clk 0:00:11.8]} 42. Qd3 {[%clk 0:00:10.6]} 42... Qb6 {[%clk 0:00:11.3]} 43.
Qf3 {[%clk 0:00:09.8]} 43... Qb4 {[%clk 0:00:11]} 44. e5 {[%clk 0:00:09.7]}
44... Qa3 {[%clk 0:00:09.7]} 45. Qe2 {[%clk 0:00:09.3]} 45... Rd8 {[%clk
0:00:08.6]} 46. Qf3 {[%clk 0:00:08.5]} 46... Qb4 {[%clk 0:00:08.6]} 47. Qe2
{[%clk 0:00:08.6]} 47... Qb6 {[%clk 0:00:08.7]} 48. Qf3 {[%clk 0:00:08.6]} 48...
Qc7 {[%clk 0:00:08.9]} 49. Qg2 {[%clk 0:00:07.6]} 49... Qe7 {[%clk 0:00:09]} 50.
Qf3 {[%clk 0:00:07.7]} 50... Rb8 {[%clk 0:00:09.6]} 51. Qe2 {[%clk 0:00:07.3]}
51... Rb4 {[%clk 0:00:09.9]} 52. Qf3 {[%clk 0:00:07.3]} 52... Qc7 {[%clk
0:00:09.7]} 53. Qe4 {[%clk 0:00:07.3]} 53... Qb6 {[%clk 0:00:09.3]} 54. Qd3
{[%clk 0:00:07.4]} 54... Qb8 {[%clk 0:00:08.8]} 55. Qe4 {[%clk 0:00:07.3]} 55...
Rxb3 {[%clk 0:00:07.4]} 56. Bxb3 {[%clk 0:00:06.9]} 56... Qxb3 {[%clk
0:00:08.3]} 57. Rxd4 {[%clk 0:00:04.3]} 57... cxd4 {[%clk 0:00:06.7]} 58. Qxd4
{[%clk 0:00:04.7]} 58... Qb1 {[%clk 0:00:06.5]} 59. Kg2 {[%clk 0:00:04.7]} 59...
Qa2+ {[%clk 0:00:05.9]} 60. Kf3 {[%clk 0:00:04.9]} 60... Kh7 {[%clk 0:00:05.8]}
61. Qb4 {[%clk 0:00:04.2]} 61... Qc2 {[%clk 0:00:04.7]} 62. a5 {[%clk
0:00:03.6]} 62... Qd1+ {[%clk 0:00:04.1]} 63. Kg2 {[%clk 0:00:03.7]} 63... Qe2+
{[%clk 0:00:03.7]} 64. Kg1 {[%clk 0:00:03.6]} 64... Qd1+ {[%clk 0:00:03.1]} 65.
Kg2 {[%clk 0:00:04]} 65... Qe2+ {[%clk 0:00:03.2]} 66. Kg1 {[%clk 0:00:04.6]}
66... Qd1+ {[%clk 0:00:03.4]} 67. Kg2 {[%clk 0:00:05.2]} 1/2-1/2

[Event "Early-Titled-Tuesday-Blitz-December-26-2023"]
[Site "Chess.com"]
[Date "2023.12.26"]
[Round "9"]
[White "dennisodessa"]
[Black "PawnEatingZombie"]
[Result "1-0"]
[WhiteElo "2534"]
[BlackElo "2150"]
[TimeControl "180+1"]
[EndTime "9:46:43 PST"]
[Termination "dennisodessa won on time"]

1. d4 {[%clk 0:02:15.7]} 1... e6 {[%clk 0:02:37.6]} 2. c4 {[%clk 0:02:12.5]}
2... b6 {[%clk 0:02:32.3]} 3. e4 {[%clk 0:02:09.4]} 3... Bb4+ {[%clk 0:02:30.8]}
4. Bd2 {[%clk 0:02:08.4]} 4... Bxd2+ {[%clk 0:02:29.6]} 5. Nxd2 {[%clk
0:02:09.3]} 5... d5 {[%clk 0:02:22]} 6. Bd3 {[%clk 0:02:10.2]} 6... Ne7 {[%clk
0:02:18.8]} 7. Ngf3 {[%clk 0:02:05.5]} 7... Bb7 {[%clk 0:02:13.6]} 8. O-O {[%clk
0:02:05.3]} 8... Nd7 {[%clk 0:02:09.2]} 9. exd5 {[%clk 0:01:44.9]} 9... exd5
{[%clk 0:02:08.2]} 10. Ng5 {[%clk 0:01:45.8]} 10... Nf6 {[%clk 0:02:02.7]} 11.
Re1 {[%clk 0:01:34.1]} 11... O-O {[%clk 0:01:57.1]} 12. Ndf3 {[%clk 0:01:11.4]}
12... h6 {[%clk 0:01:55.9]} 13. Nh3 {[%clk 0:01:10.7]} 13... dxc4 {[%clk
0:01:55.4]} 14. Bxc4 {[%clk 0:01:11.6]} 14... Ned5 {[%clk 0:01:55.5]} 15. Ne5
{[%clk 0:01:06.1]} 15... Qd6 {[%clk 0:01:50]} 16. Qf3 {[%clk 0:01:06]} 16...
Rab8 {[%clk 0:01:35.9]} 17. Qg3 {[%clk 0:01:05.1]} 17... Rbe8 {[%clk 0:01:03.4]}
18. Rad1 {[%clk 0:01:04.1]} 18... Re7 {[%clk 0:01:01.9]} 19. Nf4 {[%clk
0:00:50.4]} 19... Nxf4 {[%clk 0:00:58.8]} 20. Qxf4 {[%clk 0:00:51.3]} 20... Rfe8
{[%clk 0:00:53.9]} 21. h3 {[%clk 0:00:50.7]} 21... Bd5 {[%clk 0:00:49.4]} 22.
Bxd5 {[%clk 0:00:45.6]} 22... Qxd5 {[%clk 0:00:48.8]} 23. b3 {[%clk 0:00:43.9]}
23... a5 {[%clk 0:00:38.5]} 24. Qd2 {[%clk 0:00:38.8]} 24... Rd8 {[%clk
0:00:33.4]} 25. Qc2 {[%clk 0:00:36.6]} 25... Qd6 {[%clk 0:00:24.8]} 26. Re2
{[%clk 0:00:26.2]} 26... Nd5 {[%clk 0:00:24.8]} 27. Red2 {[%clk 0:00:07.5]}
27... Qf6 {[%clk 0:00:16.1]} 28. Qe4 {[%clk 0:00:06.4]} 28... Nc3 {[%clk
0:00:13.6]} 29. Qf3 {[%clk 0:00:05.2]} 29... Nxd1 {[%clk 0:00:12.8]} 30. Qxd1
{[%clk 0:00:04.1]} 30... Rxe5 {[%clk 0:00:09.3]} 31. dxe5 {[%clk 0:00:03.4]}
31... Rxd2 {[%clk 0:00:10.2]} 32. Qxd2 {[%clk 0:00:03.4]} 32... Qxe5 {[%clk
0:00:11.1]} 33. Qd8+ {[%clk 0:00:03.9]} 33... Kh7 {[%clk 0:00:11.1]} 34. Qd2
{[%clk 0:00:04.8]} 34... g6 {[%clk 0:00:10.7]} 35. Qd7 {[%clk 0:00:04.6]} 35...
Kg7 {[%clk 0:00:10.5]} 36. Qd2 {[%clk 0:00:04.3]} 36... h5 {[%clk 0:00:06.6]}
37. g3 {[%clk 0:00:04.6]} 37... Qa1+ {[%clk 0:00:06.2]} 38. Kg2 {[%clk
0:00:04.1]} 38... Qe5 {[%clk 0:00:07.1]} 39. h4 {[%clk 0:00:04.5]} 39... c6
{[%clk 0:00:07.3]} 40. Kh2 {[%clk 0:00:04.8]} 40... Qd5 {[%clk 0:00:07.3]} 41.
Qc3+ {[%clk 0:00:05.2]} 41... f6 {[%clk 0:00:06.7]} 42. Qe3 {[%clk 0:00:05.8]}
42... Kf7 {[%clk 0:00:06.1]} 43. Qxb6 {[%clk 0:00:05.8]} 43... Qf3 {[%clk
0:00:05.1]} 44. Qa7+ {[%clk 0:00:03.9]} 44... Kg8 {[%clk 0:00:04.7]} 45. Kg1
{[%clk 0:00:03.2]} 45... Qd1+ {[%clk 0:00:04.5]} 46. Kg2 {[%clk 0:00:03.6]}
46... Qd5+ {[%clk 0:00:05.1]} 47. Kh2 {[%clk 0:00:04.2]} 47... Qf3 {[%clk
0:00:05.3]} 48. Qd4 {[%clk 0:00:04]} 48... Kf7 {[%clk 0:00:03.4]} 49. a4 {[%clk
0:00:04.3]} 49... g5 {[%clk 0:00:02.9]} 50. hxg5 {[%clk 0:00:03.8]} 50... fxg5
{[%clk 0:00:03.2]} 51. Qd7+ {[%clk 0:00:04.5]} 51... Kg8 {[%clk 0:00:02.4]} 52.
Qe8+ {[%clk 0:00:04.4]} 52... Kg7 {[%clk 0:00:02.3]} 53. Qe7+ {[%clk 0:00:04.6]}
53... Kg8 {[%clk 0:00:02.3]} 54. Qxg5+ {[%clk 0:00:04.6]} 54... Kf7 {[%clk
0:00:02.6]} 55. Qe3 {[%clk 0:00:05.1]} 55... Qd1 {[%clk 0:00:01.4]} 56. Qf4+
{[%clk 0:00:04]} 56... Ke7 {[%clk 0:00:01.6]} 57. Qe4+ {[%clk 0:00:04.4]} 57...
Kd7 {[%clk 0:00:01.6]} 58. Qh7+ {[%clk 0:00:02.7]} 58... Kd6 {[%clk 0:00:01.9]}
59. Qh6+ {[%clk 0:00:03]} 59... Kc7 {[%clk 0:00:01.7]} 60. Qf4+ {[%clk
0:00:03.7]} 60... Kb6 {[%clk 0:00:01.5]} 61. Qe3+ {[%clk 0:00:04.6]} 61... Kb7
{[%clk 0:00:01.8]} 62. Qe7+ {[%clk 0:00:04.5]} 62... Kb6 {[%clk 0:00:02.2]} 63.
Qe3+ {[%clk 0:00:05.2]} 63... Kb7 {[%clk 0:00:02.7]} 64. Kg2 {[%clk 0:00:05.9]}
64... Qc2 {[%clk 0:00:02]} 65. Qf3 {[%clk 0:00:06.8]} 65... Kb6 {[%clk
0:00:01.2]} 66. Qxh5 {[%clk 0:00:06.5]} 1-0

[Event "Early-Titled-Tuesday-Blitz-December-26-2023"]
[Site "Chess.com"]
[Date "2023.12.26"]
[Round "9"]
[White "Onischuk_V"]
[Black "mbojan"]
[Result "1-0"]
[WhiteElo "2771"]
[BlackElo "2902"]
[TimeControl "180+1"]
[EndTime "9:46:46 PST"]
[Termination "Onischuk_V won by resignation"]

1. Nf3 {[%clk 0:03:00.9]} 1... g6 {[%clk 0:02:58.5]} 2. g3 {[%clk 0:03:01]} 2...
d6 {[%clk 0:02:58.1]} 3. Bg2 {[%clk 0:03:01.5]} 3... Bg7 {[%clk 0:02:57.6]} 4.
O-O {[%clk 0:03:02.1]} 4... Bd7 {[%clk 0:02:58]} 5. e4 {[%clk 0:02:58.7]} 5...
Qc8 {[%clk 0:02:57.5]} 6. d4 {[%clk 0:02:55.1]} 6... Bh3 {[%clk 0:02:54.9]} 7.
Nc3 {[%clk 0:02:54.7]} 7... h5 {[%clk 0:02:51.7]} 8. Bxh3 {[%clk 0:02:50.1]}
8... Qxh3 {[%clk 0:02:52.6]} 9. Ng5 {[%clk 0:02:50.3]} 9... Qd7 {[%clk
0:02:44.7]} 10. h4 {[%clk 0:02:30.2]} 10... Nc6 {[%clk 0:02:40.5]} 11. Be3
{[%clk 0:02:29.2]} 11... Nf6 {[%clk 0:02:23.7]} 12. f3 {[%clk 0:02:27.1]} 12...
e6 {[%clk 0:02:02.8]} 13. Qd2 {[%clk 0:02:23.8]} 13... d5 {[%clk 0:02:00.9]} 14.
e5 {[%clk 0:02:12.9]} 14... Ng8 {[%clk 0:02:01]} 15. Ne2 {[%clk 0:02:10.2]}
15... Nh6 {[%clk 0:01:55.3]} 16. b3 {[%clk 0:01:52]} 16... O-O-O {[%clk
0:01:54.6]} 17. Rad1 {[%clk 0:01:47.5]} 17... Nf5 {[%clk 0:01:54.6]} 18. Bf2
{[%clk 0:01:47.6]} 18... f6 {[%clk 0:01:54.2]} 19. exf6 {[%clk 0:01:46.6]} 19...
Bxf6 {[%clk 0:01:55.1]} 20. Kg2 {[%clk 0:01:28.7]} 20... Kb8 {[%clk 0:01:47.6]}
21. Nf4 {[%clk 0:01:20.7]} 21... Bxg5 {[%clk 0:01:45.2]} 22. hxg5 {[%clk
0:01:20.3]} 22... Qf7 {[%clk 0:01:45.8]} 23. c3 {[%clk 0:01:14.7]} 23... b6
{[%clk 0:01:33.5]} 24. Nd3 {[%clk 0:01:12.9]} 24... Rdf8 {[%clk 0:01:23.7]} 25.
Qe2 {[%clk 0:01:05.2]} 25... Qe7 {[%clk 0:01:12.9]} 26. Qd2 {[%clk 0:01:00.3]}
26... Qd6 {[%clk 0:00:56.5]} 27. Rh1 {[%clk 0:00:57.2]} 27... h4 {[%clk
0:00:53.1]} 28. gxh4 {[%clk 0:00:53.2]} 28... e5 {[%clk 0:00:43.8]} 29. dxe5
{[%clk 0:00:45.9]} 29... Nxe5 {[%clk 0:00:44.7]} 30. Nxe5 {[%clk 0:00:41.9]}
30... Qxe5 {[%clk 0:00:45.6]} 31. Qxd5 {[%clk 0:00:40.9]} 31... Qe2 {[%clk
0:00:30.1]} 32. Qd2 {[%clk 0:00:34.8]} 32... Nxh4+ {[%clk 0:00:26.1]} 33. Rxh4
{[%clk 0:00:32.7]} 33... Qxf3+ {[%clk 0:00:25.4]} 34. Kh2 {[%clk 0:00:16.3]}
34... Rxh4+ {[%clk 0:00:13.9]} 35. Bxh4 {[%clk 0:00:15.6]} 35... Rh8 {[%clk
0:00:13.5]} 36. Qd4 {[%clk 0:00:12.7]} 36... Rxh4+ {[%clk 0:00:05.7]} 37. Qxh4
{[%clk 0:00:12.8]} 37... Qxd1 {[%clk 0:00:06.6]} 38. Qh8+ {[%clk 0:00:12.9]}
38... Kb7 {[%clk 0:00:06.9]} 39. Qe5 {[%clk 0:00:13.6]} 39... Qd2+ {[%clk
0:00:06.2]} 40. Kg3 {[%clk 0:00:13.7]} 40... Qxa2 {[%clk 0:00:03.6]} 41. Qe4+
{[%clk 0:00:13.5]} 41... Ka6 {[%clk 0:00:04.2]} 42. Qd3+ {[%clk 0:00:11.4]}
42... Kb7 {[%clk 0:00:03.5]} 43. Qxg6 {[%clk 0:00:11.4]} 43... Qxb3 {[%clk
0:00:03.3]} 44. Qe4+ {[%clk 0:00:11.9]} 44... c6 {[%clk 0:00:03.7]} 45. g6
{[%clk 0:00:09]} 45... Qxc3+ {[%clk 0:00:03.7]} 46. Kf4 {[%clk 0:00:09.2]} 46...
a5 {[%clk 0:00:02.6]} 47. Qe7+ {[%clk 0:00:08.9]} 47... Ka6 {[%clk 0:00:03.1]}
48. g7 {[%clk 0:00:09.3]} 48... Qc4+ {[%clk 0:00:02.4]} 49. Ke5 {[%clk
0:00:08.5]} 49... a4 {[%clk 0:00:02.7]} 50. Qf8 {[%clk 0:00:07.4]} 50... Qd5+
{[%clk 0:00:01.6]} 51. Kf6 {[%clk 0:00:07.5]} 51... Qf3+ {[%clk 0:00:02.1]} 52.
Ke7 {[%clk 0:00:07.8]} 52... Qe4+ {[%clk 0:00:02.3]} 53. Kd7 {[%clk 0:00:07.8]}
53... Qg4+ {[%clk 0:00:01.9]} 54. Kc7 {[%clk 0:00:06.6]} 54... Qg3+ {[%clk
0:00:02.2]} 55. Kc8 {[%clk 0:00:06.8]} 55... Qh3+ {[%clk 0:00:02.3]} 56. Kb8
{[%clk 0:00:07]} 56... Qd7 {[%clk 0:00:02.6]} 57. Qc8+ {[%clk 0:00:05.4]} 57...
Qxc8+ {[%clk 0:00:02]} 58. Kxc8 {[%clk 0:00:06.1]} 58... a3 {[%clk 0:00:02.5]}
59. g8=Q {[%clk 0:00:06.7]} 59... Ka5 {[%clk 0:00:03]} 60. Qb3 {[%clk
0:00:07.1]} 60... b5 {[%clk 0:00:01.6]} 61. Qxa3+ {[%clk 0:00:07.4]} 61... Kb6
{[%clk 0:00:02.5]} 62. Kb8 {[%clk 0:00:07.3]} 62... c5 {[%clk 0:00:03.1]} 63.
Qa7+ {[%clk 0:00:07.4]} 63... Kc6 {[%clk 0:00:03.7]} 64. Qb7+ {[%clk 0:00:07.8]}
64... Kd6 {[%clk 0:00:03.7]} 65. Qxb5 {[%clk 0:00:08.6]} 65... Kd5 {[%clk
0:00:04.6]} 66. Kc7 {[%clk 0:00:08.8]} 66... Kd4 {[%clk 0:00:04.8]} 67. Kd6
{[%clk 0:00:09]} 67... c4 {[%clk 0:00:05.7]} 68. Qb4 {[%clk 0:00:08.5]} 68...
Kd3 {[%clk 0:00:06.6]} 69. Qb1+ {[%clk 0:00:08]} 69... Kd2 {[%clk 0:00:06.9]}
70. Qb2+ {[%clk 0:00:08.1]} 70... Kd1 {[%clk 0:00:07.2]} 71. Qc3 {[%clk
0:00:08.4]} 71... Ke2 {[%clk 0:00:07.6]} 72. Qxc4+ {[%clk 0:00:08.8]} 1-0